Cogmind - Beta 14 X2 @@@ ROGUE MODE // 2024.07.31 @ 20:43:19 Player: Schmee Result: Destroyed by D-53 Grenadier with Mini Grenade Launcher Performance ------------- Evolutions (0) 0 Regions Visited (2) 400 Robots Destroyed (16) 80 Value Destroyed (439) 439 Prototype IDs (0) 0 Alien Tech Used (0) 0 Bonus (-118) -118 TOTAL SCORE: 801 Bonus ------- Friendly Fire -118 Cogmind --------- Core Integrity 0/250 Matter 167/300 Energy 140/160 System Corruption 0% Temperature Cool (23) Movement Core (850) Ox16 Location -10/Mines Parts ------- > --- POWER (1) -------- Light Nuclear Core > --- PROPULSION (2) --- (None) > --- UTILITY (2) ------ High-capacity Storage Unit Targeting Computer > --- WEAPON (2) ------- Rocket Launcher > --- INVENTORY (20) --- Light Ion Engine Light Treads Aluminum Leg Aluminum Leg Compact Wheel Sensor Array Assault Rifle Rocket Launcher Rocket Launcher Mini Grenade Launcher Mini Grenade Launcher Mini Grenade Launcher Mini Grenade Launcher Hammer Peak State ------------ > --- POWER ------------ Light Nuclear Core > --- PROPULSION ------- Light Treads Light Treads > --- UTILITY ---------- High-capacity Storage Unit Targeting Computer > --- WEAPON ----------- Light Cannon Mini Grenade Launcher > --- INVENTORY -------- Light Ion Engine Light Treads Aluminum Leg Aluminum Leg Compact Wheel Sensor Array Beam Cannon Assault Rifle Rocket Launcher Rocket Launcher Rocket Launcher Rocket Launcher Mini Grenade Launcher Mini Grenade Launcher Mini Grenade Launcher Hammer [Rating: 12] Favorites ----------- Power Light Ion Engine Engine Light Ion Engine Power Core Light Nuclear Core Propulsion Aluminum Leg Treads Light Treads Leg Aluminum Leg Utility Targeting Computer Storage Small Storage Unit Processor Targeting Computer Weapon Assault Rifle Energy Gun Medium Laser Energy Cannon Beam Cannon Ballistic Gun Assault Rifle Ballistic Cannon Light Cannon Launcher Mini Grenade Launcher Impact Weapon Hammer Build | -11 -10 -10 ------- Run | Yrd Mat Min Slots Evolved . | . . . Power . | . . . Propulsion . | . . . Utility . | . . . Weapon . | . . . Parts Attached 14 | . 9 5 Power 1 | . 1 . Engine . | . . . Core 1 | . 1 . Reactor . | . . . Propulsion 4 | . 4 . Treads 2 | . 2 . Leg 2 | . 2 . Wheel . | . . . Hover . | . . . Flight . | . . . Utility 2 | . 2 . Device . | . . . Storage 1 | . 1 . Processor 1 | . 1 . Hackware . | . . . Protection . | . . . Artifact . | . . . Weapon 7 | . 2 5 Energy Gun 1 | . 1 . Energy Cannon 1 | . . 1 Ballistic Gun . | . . . Ballistic Cannon 1 | . 1 . Launcher 3 | . . 3 Special Weapon . | . . . Impact Weapon 1 | . . 1 Slashing Weapon . | . . . Piercing Weapon . | . . . Special Melee Weapon . | . . . Unidentified Prototypes . | . . . Parts Lost 6 | . 1 5 Power 1 | . 1 . Propulsion 2 | . . 2 Utility . | . . . Weapon 3 | . . 3 Highest Loss Streak 5 | . 1 5 To Critical Strikes . | . . . Average Slot Usage (%) 99 | . 99 97 Engine 7 | . 7 . Core 6 | . 5 14 Treads 12 | . 11 26 Leg 14 | . 16 . Storage 14 | . 14 14 Processor 13 | . 13 14 Energy Gun 6 | . 7 . Ballistic Gun 13 | . 14 9 Ballistic Cannon 7 | . 6 13 Naked Turns . | . . . Heaviest Build 51 | 12 50 51 Greatest Support 40 | 20 40 40 Greatest Overweight (x) 1 | . 1 1 Average Overweight (x) . | . . 1 Largest Inventory Capacity 20 | . 20 20 Average Capacity 13 | . 12 20 Most Carried 16 | . 16 16 Average Carried 8 | . 8 15 Final Capacity 20 | 8 20 20 Final Carried 16 | 6 16 14 Class Distribution -------------------- 100% | Mutant Dominant Class ---------------- Mutant | -10/Materials Mutant | -10/Mines Resources | -11 -10 -10 ----------- Run | Yrd Mat Min Matter Collected 475 | 186 289 . Remotely . | . . . Salvage Created 551 | . 461 90 Parts 32 | . 24 8 Haulers Intercepted 1 | . 1 . Recyclers Shooed 1 | . . 1 Parts Field Recycled . | . . . Retrieved Matter . | . . . Parts Self-Destructed . | . . . Prevented . | . . . Kills | -11 -10 -10 ------- Run | Yrd Mat Min Combat Hostiles Destroyed 13 | . 9 4 Guns 8 | . 8 . Cannons 1 | . 1 . AOE 4 | . . 4 Classes Destroyed 8 | . 4 4 Worker 1 | . 1 . Hauler 1 | . 1 . Recycler 1 | . . 1 Watcher 2 | . 2 . Grunt 9 | . 9 . Demolisher 1 | . . 1 Zionite 1 | . . 1 Assembled 3 | . . 3 Best Kill Streak 3 | . 2 3 Combat Bots Only 3 | . 2 3 Max Kills in Single Turn 2 | . 1 2 Gunslinging . | . . . Exploded 2 | . . 2 Melee . | . . . Uniques/NPCs Destroyed . | . . . Combat | -11 -10 -10 -------- Run | Yrd Mat Min Hostile Shots Fired 60 | . 42 18 Missed 11 | . 10 1 Damage Taken 1209 | . 403 806 Core 290 | . 78 212 Absorbed by Shields . | . . . Core Remaining (%) 100 | 100 . . Volleys Fired 60 | . 48 12 Largest 2 | . 2 2 Hottest 95 | . 70 95 Shots Fired 111 | . 96 15 Gun 84 | . 84 . Cannon 18 | . 12 6 Launcher 9 | . . 9 Special . | . . . Kinetic 63 | . 60 3 Thermal 39 | . 36 3 Explosive 9 | . . 9 Electromagnetic . | . . . Robot Hit Streak 11 | . 11 4 Robot Miss Streak 3 | . 3 2 Penetration Max . | . . . Secondary Targets . | . . . Shots Hit Robots 79 | . 70 9 Core Hits 41 | . 25 16 Critical Kills . | . . . Critical Parts Destroyed 2 | . 2 . Critical Strikes 4 | . 4 . Burn 2 | . 2 . Destroy 2 | . 2 . Melee Attacks . | . . . Impact . | . . . Slashing . | . . . Piercing . | . . . Sneak Attacks . | . . . Combat Hostiles . | . . . Follow-up Attacks . | . . . Damage Inflicted 1517 | . 972 545 Guns 806 | . 806 . Cannons 236 | . 164 72 Explosions 470 | . . 470 Melee . | . . . Ramming 5 | . 2 3 Kinetic 674 | . 637 37 Thermal 368 | . 333 35 Explosive 470 | . . 470 Electromagnetic . | . . . Impact . | . . . Slashing . | . . . Piercing . | . . . Highest Corruption . | . . . Average Corruption . | . . . Corruption Purged . | . . . Corruption Blocked . | . . . Overload Shots . | . . . Overflow Damage 28 | . . 28 Projectiles . | . . . Explosions 28 | . . 28 Melee . | . . . Knockbacks 4 | . 2 2 Impact . | . . . Kinetic 4 | . 2 2 Secondary . | . . . Self-Inflicted Damage 85 | . . 85 Shots 2 | . . 2 Rammed 1 | . . 1 Targets Rammed 2 | . 1 1 Kicked 1 | . 1 . Crushed . | . . . Highest Temperature 117 | . 105 117 Average Temperature 32 | . 29 45 Received Heat Transfer 272 | . 243 29 Siege Activations . | . . . Robots Corrupted . | . . . Combat Hostiles . | . . . Parts Fried . | . . . Impact Corruptions . | . . . Robots Melted . | . . . Combat Hostiles . | . . . Parts Melted . | . . . Heat Transferred 1184 | . 1110 74 Parts Sabotaged . | . . . Parts Stolen . | . . . Parts Stripped . | . . . Power Chain Reactions . | . . . Alert | -11 -10 -10 ------- Run | Yrd Mat Min Peak Influence 152 | . 152 38 Initial 3 | . . 3 Average 55 | . 62 6 Maximum Alert Level . | . . . Low Security (%) 100 | . 100 100 Level 1 . | . . . Level 2 . | . . . Level 3 . | . . . Level 4 . | . . . Level 5 . | . . . High Security . | . . . Max Security . | . . . Squads Dispatched 1 | . 1 . Investigation . | . . . Extermination . | . . . Reinforcement 1 | . 1 . Assault . | . . . Garrison . | . . . Intercept . | . . . Searches Triggered . | . . . Construction Impeded . | . . . Haulers Reinforced . | . . . Active Scanning Responses . | . . . Cargo Convoy Interrupts . | . . . Stealth | -11 -10 -10 --------- Run | Yrd Mat Min Distress Signals 1 | . 1 . Communications Jammed . | . . . Distress Signals . | . . . Times Spotted 20 | . 14 6 Peak Tracking Total 5 | . 3 5 Tactical Retreats 1 | . 1 . Traps | -11 -10 -10 ------- Run | Yrd Mat Min Traps Triggered . | . . . Indirectly . | . . . Trap Hack Attempts . | . . . Triggered . | . . . Disarmed . | . . . Reprogrammed . | . . . Reused . | . . . Traps Extracted . | . . . Installed . | . . . Triggered . | . . . Machines | -11 -10 -10 ---------- Run | Yrd Mat Min Machines Disabled . | . . . Max in Single Turn . | . . . Machines Repaired . | . . . Machines Dismantled . | . . . Machines Sabotaged . | . . . Overloaded Fab Kills . | . . . Hacking | -11 -10 -10 --------- Run | Yrd Mat Min Machines Accessed 5 | . 5 . Terminals 5 | . 5 . Fabricators . | . . . Repair Stations . | . . . Recycling Units . | . . . Scanalyzers . | . . . Garrison Access . | . . . Total Hacks 15 | . 15 . Successful 8 | . 8 . Failed 7 | . 7 . Catastrophic 1 | . 1 . Database Lockouts . | . . . Manual 15 | . 15 . Terminals 15 | . 15 . Fabricators . | . . . Repair Stations . | . . . Recycling Units . | . . . Scanalyzers . | . . . Garrison Access . | . . . Terminal Hacks 6 | . 6 . Part Schematic 1 | . 1 . Robot Analysis 3 | . 3 . Transport Status 1 | . 1 . Hauler Manifests 1 | . 1 . Fabricator Hacks . | . . . Repair Station Hacks . | . . . Recycling Unit Hacks . | . . . Scanalyzer . | . . . Garrison Access Hacks . | . . . Unauthorized Hacks 2 | . 2 . Terminals 2 | . 2 . Botnet 2 | . 2 . Fabricators . | . . . Repair Stations . | . . . Recycling Units . | . . . Scanalyzers . | . . . Garrison Access . | . . . Data Cores Recovered . | . . . Used . | . . . Hacking Detections 4 | . 4 . Full Trace Events . | . . . Feedback Events . | . . . Feedback Blocked . | . . . Robot Schematics Acquired . | . . . Robots Built . | . . . Authchips . | . . . Time . | . . . Total Robot Build Rating . | . . . Part Schematics Acquired 1 | . 1 . Parts Built . | . . . Authchips . | . . . Time . | . . . Total Part Build Rating . | . . . Parts Repaired . | . . . Time . | . . . Parts Recycled . | . . . Recycled Matter . | . . . Retrieved Matter . | . . . Retrieved Components . | . . . Parts Scanalyzed . | . . . Part Schematics Acquired . | . . . Parts Damaged . | . . . Bothacking | -11 -10 -10 ------------ Run | Yrd Mat Min Used RIF Installer . | . . . Robots Hacked . | . . . Non-combat . | . . . Combat . | . . . Robot Hacks Applied . | . . . Relay Couplers Released . | . . . Fabnet Peak Effective % . | . . . Robots Rewired . | . . . Allies Hacked . | . . . Hacks Repelled . | . . . Allies | -11 -10 -10 -------- Run | Yrd Mat Min Total Allies 2 | . . 2 Largest Group 2 | . . 2 Highest-Rated Group 50 | . . 50 Highest-Rated Ally 31 | . . 31 Total Orders . | . . . Ally Attacks 4 | . . 4 Total Damage 62 | . . 62 Kills 1 | . . 1 Allies Corrupted . | . . . Allies Melted . | . . . Intel | -11 -10 -10 ------- Run | Yrd Mat Min Robot Analysis Total 3 | . 3 . Derelict Logs Recovered 1 | . . 1 Drone Launches . | . . . Drone Recoveries . | . . . Exploration | -11 -10 -10 ------------- Run | Yrd Mat Min Turns Passed 1247 | . 1106 141 Spaces Moved 586 | 1 542 43 Core . | . . . Treads 219 | . 176 43 Legs 367 | 1 366 . Wheels . | . . . Hover . | . . . Flight . | . . . Fastest Speed 120 | 120 120 240 Average Speed 164 | 120 158 240 Slowest Speed 240 | 120 240 240 Overloaded Moves . | . . . Propulsion Burnouts . | . . . Robots Hopped . | . . . Cave-ins Triggered . | . . . Exploration Rate (%) 36 | 2 84 23 Regions Visited 2 Branch Regions 1 Pre-discovered Areas 1 | . . 1 Known Exits Taken . | . . . Unknown Exits Taken 2 | 1 1 . Scrap Searched . | . . . Spaces Dug . | . . . Terrain Destroyed 47 | . . 47 Melee . | . . . Projectile . | . . . AOE 47 | . . 47 Terrain Rammed . | . . . Walls Destroyed . | . . . Machines Disabled . | . . . Actions | -11 -10 -10 --------- Run | Yrd Mat Min Total 756 | . 693 63 Wait 75 | . 73 2 Move 584 | . 541 43 Hop . | . . . Pick Up 13 | . 13 . Fast Attach 2 | . 2 . Attach 4 | . 2 2 Detach 2 | . 2 . Swap 8 | . 5 3 Drop 6 | . 6 . Fire 60 | . 48 12 Melee . | . . . Ram . | . . . Kick 1 | . 1 . Crush 1 | . . 1 Escape Stasis . | . . . Rewire . | . . . Trap . | . . . Miscellaneous . | . . . Route ------- -11/Scrapyard -10/Materials (discovered 4 exits: [*Mat x3] / [*Min]) -10/Mines History --------- Turn | Location | Event 1 | -11/Scrapyard | Discovered new exit (range 0) 1 | -11/Scrapyard | Entered Materials 171 | -10/Materials | Discovered new exit (range 3) 317 | -10/Materials | Build established: Mutant 497 | -10/Materials | Discovered new exit (range 3) 596 | -10/Materials | Discovered new exit (range 8) 991 | -10/Materials | Discovered new exit (range 16) 1107 | -10/Materials | Entered Mines 1122 | -10/Mines | Learned location of Zion (-7) 1190 | -10/Mines | Assembled infested the area 1237 | -10/Mines | Core integrity fell below 50% 1245 | -10/Mines | Core integrity fell below 20% 1248 | -10/Mines | Destroyed by D-53 Grenadier with Mini Grenade Launcher Last Messages --------------- 01240_ D-53 Grenadier destroyed. 01240_ R-06 Scavenger destroyed. 01240_ K-01 Serf collects debris. 01240_ U-05 Engineer lays Concrete. 01241_ The unstable cave ceiling collapses. 01241_ U-05 Engineer lays Concrete. 01241_ K-01 Serf collects debris. 01242_ T-07 Excavator is excavating. 01242_ U-05 Engineer lays Concrete. 01243_ The unstable cave ceiling collapses. 01243_ U-05 Engineer builds a Wall. 01244_ The unstable cave ceiling collapses. 01245_ K-01 Serf collects debris. 01245_ T-07 Excavator is excavating. 01246_ Rocket Launcher destroyed. 01246_ Beam Cannon destroyed. 01247_ The unstable cave ceiling collapses. 01247_ K-01 Serf collects debris. 01247_ U-05 Engineer lays Concrete. 01248_ U-05 Engineer builds a Wall. Map ----- +----------------------------------------------------+ | ?????????????????????????????????????????????????? | | ?????????????????????????????????????????????????? | | ?????????????????????????????????????????????????? | | ?????????????????????????????????????????????????? | | ?????????????????????????????????????????????????? | | ?????????????????????????????????????????????????? | | ?????????????????????????????????????????????????? | | ?????????????????????????????????????????????????? | | ?????????????????????????????????????????????????? | | ?????????????????????????????????????????????????? | | ?????????????????????????????????????????????????? | | ?????????????????????????????????????????????????? | | ?????????????????????????????????????????????????? | | ???????????????????????###???????????????????????? | | ??????????????????????? ???????????????????????? | | ??????????????????????? ???????????????????????? | | ??????????????????????? r???????????????????????? | | ???????????????????????# #??????????????????????? | | ???????????????????????# #?##???????????????????? | | ???????????????????????#k ? #???????????????????? | | ?????????????????????### u## ##########??????????? | | ????????????????????## # ?????????? | | ????????????????????# < ?????????? | | ???????????????????## ????????? | | ?????????????????### ????????? | | ??????????????# t @ d #????????? | | ???????????????# !# % # #????????? | | ???????????????# | # #????????? | | ???????????????#### # ?????????? | | ??????????????????## # k ?????????? | | ???????????????????## ## % # #?????????? | | ????????????????????### ##? ??????????? | | ?????????????????????### ##?? %% ??????????? | | ?????##########?????## ## # ??????????? | | ???### ## ####### # ???????????? | | ??## # ##????????????? | | #?# """ ??????????? | | ### """ ##### ######??????????? | | % """ #??# """ #???????????????? | | ### """ """ ##???????????????? | | #?# ## """ ##????????????????? | | #?## #### #### ##?????????????????? | | #??####??######??# #??????????????????? | | #????????????????## ##??????????????????? | | ??????????????????############???????????????????? | | ?????????????????????????????????????????????????? | | ?????????????????????????????????????????????????? | | | | | | | +----------------------------------------------------+ Best States ------------- Heat Dissipation 25 Energy Generation 14 Energy Capacity 160 Matter Stores 300 Matter Capacity 300 Sight Range 16 Terrain Scan Density 10 Evasion (%) 55 Targeting Accuracy 5 Recoil Reduction 2 Item Schematics ----------------- Hcp. Storage Unit | -10/Materials | Hacked Robot Schematics ------------------ None Fabricated ------------ Nothing Alien Tech Used ----------------- None Achievements -------------- None Challenges ------------ None Game ------ Seed ForceImprovedMallet Manual? 0 Play Time 00:12:24 Cumulative 123.6 hours Start 2024.07.31 @ 17:45:09 End 2024.07.31 @ 20:43:19 Sessions 3 Manual Loads 0 Difficulty Rogue Special Mode None Game No. 64 Rogue 62 Adventurer 0 Explorer 2 Win Type - Total 8 Types 8/0/0/0/0/0/0/0/0 Lore% 44 Gallery% 65 Achievement% 57 Wizard Run 0 Options --------- Layout 0 ASCII 0 Keyboard 1 Movement Numpad Keybinds 0 Fullscreen 1 Font 24/Smallcaps Map View 76x50 Zoom Use 0% Tactical HUD 1 Map Filters NONE Filters NONE Steam 1 RUN: dbc37949-0a59-42c7-acff-aaa1d42a46c4